fUST/lending_fUST_20250901
["ID","MTS","AMOUNT","RATE_DAILY","PERIOD"]
[382670286,1756703450213,-480.0,0.00014512,2]
[382670287,1756703450222,-972.19,0.00014512,2]
[382670288,1756703450231,-480.0,0.00014512,2]
[382670289,1756703450241,-480.0,0.00014512,2]
[382670290,1756703450250,-480.0,0.00014512,2]
[382670291,1756703450260,-480.0,0.00014512,2]
[382670292,1756703450269,-480.0,0.00014512,2]
[382670293,1756703450278,-510.12,0.00014512,2]
[382670294,1756703450287,-480.0,0.00014512,2]
[382670295,1756703450296,-480.0,0.00014512,2]
[382670296,1756703450306,-480.0,0.00014512,2]
[382670297,1756703450315,-480.0,0.00014512,2]
[382670298,1756703450324,-480.0,0.00014512,2]
[382670299,1756703450333,-480.0,0.00014512,2]
[382670300,1756703450343,-480.0,0.00014512,2]
[382670301,1756703450352,-480.0,0.00014512,2]
[382670302,1756703450361,-480.0,0.00014512,2]
[382670303,1756703450371,-482.35,0.00014512,2]
[382670304,1756703450380,-480.0,0.00014512,2]
[382670305,1756703450390,-621.31851868,0.00014512,2]
[382670306,1756703450400,-548.8,0.00014512,2]
[382670307,1756703450409,-480.0,0.00014512,2]
[382670308,1756703450419,-480.0,0.00014512,2]
[382670309,1756703450428,-480.0,0.00014512,2]
[382670310,1756703450437,-480.0,0.00014512,2]
[382670311,1756703450446,-480.0,0.00014512,2]
[382670312,1756703450456,-482.36166513,0.00014512,2]
[382670313,1756703450465,-605.97,0.00014512,2]
[382670314,1756703450475,-480.0,0.00014512,2]
[382670315,1756703450485,-402.25864143,0.00014512,2]
[382670316,1756703450495,-480.0,0.00014512,2]
[382670317,1756703450505,-480.0,0.00014512,2]
[382670318,1756703450514,-480.0,0.00014512,2]
[382670319,1756703450524,-480.0,0.00014512,2]
[382670320,1756703450534,-480.0,0.00014512,2]
[382670321,1756703450543,-480.0,0.00014512,2]
[382670322,1756703450553,-480.0,0.00014512,2]
[382670323,1756703450564,-480.0,0.00014512,2]
[382670324,1756703450574,-480.0,0.00014512,2]
[382670325,1756703450584,-2903.0,0.0001453,2]
[382670326,1756703450593,-151.0,0.000146,2]
[382670327,1756703450602,-440.31609092,0.00014614,2]
[382670328,1756703450612,-480.0,0.00014654,2]
[382670329,1756703450622,-480.0,0.00014654,2]
[382670330,1756703450632,-480.0,0.00014654,2]
[382670331,1756703450642,-594.71,0.00014654,2]
[382670332,1756703450657,-3547.71,0.00014654,2]
[382670333,1756703450667,-3780.08,0.00014654,2]
[382670334,1756703450681,-934.28,0.00014654,2]
[382670335,1756703450691,-480.0,0.00014654,2]
[382670336,1756703450700,-1042.47,0.00014654,2]
[382670337,1756703450711,-1121.95,0.00014654,2]
[382670338,1756703450720,-480.0,0.00014654,2]
[382670339,1756703450729,-1644.93,0.00014654,2]
[382670340,1756703450740,-512.42748391,0.00014655,2]
[382670341,1756703450750,-480.0,0.00014656,2]
[382670342,1756703450760,-480.0,0.00014656,2]
[382670343,1756703450770,-480.0,0.00014656,2]
[382670344,1756703450780,-480.0,0.00014656,2]
[382670345,1756703450790,-480.0,0.00014656,2]
[382670346,1756703450801,-480.0,0.00014656,2]
[382670347,1756703450811,-747.2,0.00014656,2]
[382670348,1756703450822,-480.0,0.00014656,2]
[382670349,1756703450839,-480.0,0.00014656,2]
[382670350,1756703450850,-630.41,0.00014656,2]
[382670351,1756703450860,-480.0,0.00014656,2]
[382670352,1756703450869,-968.44,0.00014656,2]
[382670353,1756703450879,-480.0,0.00014656,2]
[382670354,1756703450888,-480.0,0.00014656,2]
[382670355,1756703450898,-480.0,0.00014656,2]
[382670356,1756703450907,-480.0,0.00014656,2]
[382670357,1756703450916,-3028.984135,0.00014656,2]
[382670358,1756703450926,-480.0,0.00014656,2]
[382670359,1756703450940,-832.43,0.00014656,2]
[382670360,1756703450951,-946.87,0.00014656,2]
[382670361,1756703450961,-480.0,0.00014656,2]
[382670362,1756703450971,-912.79,0.00014656,2]
[382670363,1756703450983,-828.33,0.00014656,2]
[382670364,1756703450994,-480.0,0.00014656,2]
[382670365,1756703451006,-480.0,0.00014656,2]
[382670366,1756703451016,-480.0,0.00014656,2]
[382670367,1756703451028,-480.0,0.00014656,2]
[382670368,1756703451039,-480.0,0.00014656,2]
[382670369,1756703451050,-480.0,0.00014656,2]
[382670370,1756703451059,-480.0,0.00014656,2]
[382670371,1756703451069,-800.8,0.00014656,2]
[382670372,1756703451079,-811.61,0.00014656,2]
[382670373,1756703451089,-665.84,0.00014656,2]
[382670374,1756703451102,-840.08,0.00014656,2]
[382670375,1756703451112,-480.0,0.00014656,2]
[382670376,1756703451122,-480.0,0.00014656,2]
[382670377,1756703451135,-961.35,0.00014656,2]
[382670378,1756703451144,-775.25,0.00014656,2]
[382670379,1756703451156,-1025.18,0.00014656,2]
[382670380,1756703451165,-480.0,0.00014656,2]
[382670381,1756703451175,-480.0,0.00014656,2]
[382670382,1756703451185,-816.73,0.00014656,2]
[382670383,1756703451197,-480.0,0.00014656,2]
[382670384,1756703451207,-480.0,0.00014656,2]
[382670385,1756703451217,-492.23,0.00014656,2]
[382670386,1756703451226,-480.0,0.00014656,2]
[382670387,1756703451236,-984.3,0.00014656,2]
[382670388,1756703451248,-970.14,0.00014656,2]
[382670389,1756703451259,-1029.66,0.00014656,2]
[382670390,1756703451268,-480.0,0.00014656,2]
[382670391,1756703451279,-480.0,0.00014656,2]
[382670392,1756703451289,-535.38,0.00014656,2]
[382670393,1756703451299,-480.0,0.00014656,2]
[382670394,1756703451308,-1050.8,0.00014656,2]
[382670395,1756703451320,-576.23,0.00014656,2]
[382670396,1756703451329,-480.0,0.00014657,2]
[382670397,1756703451339,-714.62,0.00014657,2]
[382670398,1756703451348,-1016.13,0.00014657,2]
[382670399,1756703451357,-969.6,0.00014657,2]
[382670400,1756703451366,-480.0,0.00014657,2]
[382670401,1756703451375,-480.0,0.00014657,2]
[382670402,1756703451384,-614.56,0.00014657,2]
[382670403,1756703451393,-574.27,0.00014657,2]
[382670404,1756703451403,-480.0,0.00014657,2]
[382670405,1756703451413,-560.14,0.00014657,2]
[382670406,1756703451423,-480.0,0.00014657,2]
[382670407,1756703451432,-480.0,0.00014657,2]
[382670408,1756703451442,-806.36,0.00014657,2]
[382670409,1756703451452,-480.0,0.00014657,2]
[382670410,1756703451463,-543.83,0.00014657,2]
[382670411,1756703451473,-281.95276499,0.00014657,2]
[382670412,1756703451482,-480.0,0.00014657,2]
[382670413,1756703451492,-595.96283006,0.00014657,2]
[382670414,1756703451501,-480.0,0.00014657,2]
[382670415,1756703451511,-840.13,0.00014657,2]
[382670416,1756703451520,-789.06,0.00014657,2]
[382670417,1756703451531,-480.0,0.00014657,2]
[382670418,1756703451541,-1405.53,0.00014657,2]
[382670419,1756703451550,-480.0,0.00014657,2]
[382670420,1756703451559,-480.0,0.00014657,2]
[382670421,1756703451569,-480.0,0.00014657,2]
[382670422,1756703451579,-567.43,0.00014657,2]
[382670423,1756703451589,-480.0,0.00014657,2]
[382670424,1756703451599,-480.0,0.00014657,2]
[382670425,1756703451608,-480.0,0.00014657,2]
[382670426,1756703451618,-480.0,0.00014657,2]
[382670427,1756703451627,-480.0,0.00014658,2]
[382670428,1756703451637,-480.0,0.00014658,2]
[382670429,1756703451647,-480.0,0.00014658,2]
[382670430,1756703451659,-386.54289501,0.00014658,2]
[382670431,1756703451668,-480.0,0.00014658,2]
[382670432,1756703451678,-708.26,0.00014658,2]
[382670433,1756703451687,-668.39,0.00014658,2]
[382670434,1756703451697,-480.0,0.00014658,2]
[382670435,1756703451707,-480.0,0.00014658,2]
[382670436,1756703451716,-481.45449761,0.00014658,2]
[382670437,1756703451726,-480.0,0.00014658,2]
[382670438,1756703451735,-480.0,0.00014658,2]
[382670439,1756703451745,-480.0,0.00014658,2]
[382670440,1756703451755,-480.0,0.00014658,2]
[382670441,1756703451764,-824.12,0.00014658,2]
[382670442,1756703451774,-480.0,0.00014658,2]
[382670443,1756703451784,-497.62,0.00014658,2]
[382670444,1756703451793,-578.06,0.00014658,2]
[382670445,1756703451804,-480.0,0.00014658,2]
[382670446,1756703451813,-480.0,0.00014658,2]
[382670447,1756703451824,-480.0,0.00014658,2]
[382670448,1756703451834,-732.83,0.00014658,2]
[382670449,1756703451844,-480.0,0.00014658,2]
[382670450,1756703451853,-480.0,0.00014658,2]
[382670451,1756703451863,-623.68467902,0.00014658,2]
[382670452,1756703451872,-686.01,0.00014658,2]
[382670453,1756703451881,-480.0,0.00014658,2]
[382670454,1756703451891,-685.67,0.00014658,2]
[382670455,1756703451900,-480.0,0.00014658,2]
[382670456,1756703451910,-480.0,0.00014658,2]
[382670457,1756703451920,-480.0,0.00014658,2]
[382670458,1756703451931,-480.0,0.00014658,2]
[382670459,1756703451942,-269.0440339,0.00014658,2]
[382670460,1756703451951,-999.44,0.00014658,2]
[382670461,1756703451961,-480.0,0.00014658,2]
[382670462,1756703451972,-480.0,0.00014658,2]
[382670463,1756703451981,-480.0,0.00014658,2]
[382670464,1756703452033,-575.7,0.00014658,2]
[382670465,1756703452042,-489.55,0.00014658,2]
[382670466,1756703452051,-1182.84,0.00014658,2]
[382670467,1756703452060,-480.0,0.00014658,2]
[382670468,1756703452070,-480.0,0.00014658,2]
[382670469,1756703452079,-480.0,0.00014658,2]
[382670470,1756703452088,-480.0,0.00014658,2]
[382670471,1756703452098,-728.12,0.00014658,2]
[382670472,1756703452107,-482.24831046,0.00014658,2]
[382670473,1756703452116,-524.04,0.00014658,2]
[382670474,1756703452125,-480.0,0.00014658,2]
[382670475,1756703452135,-480.0,0.00014658,2]
[382670476,1756703452144,-480.0,0.00014658,2]
[382670477,1756703452154,-480.0,0.00014658,2]
[382670478,1756703452163,-540.78,0.00014658,2]
[382670479,1756703452172,-480.0,0.00014658,2]
[382670480,1756703452182,-480.0,0.00014658,2]
[382670481,1756703452191,-480.0,0.00014658,2]
[382670482,1756703452200,-629.33,0.00014658,2]
[382670483,1756703452210,-480.0,0.00014658,2]
[382670484,1756703452220,-480.0,0.00014658,2]
[382670485,1756703452230,-526.68,0.00014658,2]
[382670486,1756703452239,-2903.0,0.00014671,2]
[382670487,1756703452249,-5823.33784784,0.0001469,2]
[382670488,1756703452259,-151.0,0.000147,2]
[382670489,1756703452267,-480.0,0.00014779,2]
[382670490,1756703452276,-582.27,0.00014779,2]
[382670491,1756703452285,-508.3,0.00014779,2]
[382670492,1756703452295,-480.0,0.00014779,2]
[382670493,1756703452305,-630.83,0.0001478,2]
[382670494,1756703452314,-418.63901568,0.0001478,2]
[382670495,1756703452323,-480.0,0.0001478,2]
[382670496,1756703452332,-480.0,0.0001478,2]
[382670497,1756703452341,-480.0,0.0001478,2]
[382670498,1756703452350,-801.68,0.0001478,2]
[382670499,1756703452359,-1519.51,0.0001478,2]
[382670500,1756703452369,-480.0,0.0001478,2]
[382670501,1756703452378,-766.49,0.0001478,2]
[382670502,1756703452387,-1363.92,0.0001478,2]
[382670503,1756703452396,-480.0,0.0001478,2]
[382670504,1756703452406,-480.0,0.0001478,2]
[382670505,1756703452415,-1189.82,0.0001478,2]
[382670506,1756703452425,-480.0,0.0001478,2]
[382670507,1756703452434,-480.0,0.0001478,2]
[382670508,1756703452443,-480.0,0.0001478,2]
[382670509,1756703452452,-480.0,0.0001478,2]
[382670510,1756703452461,-480.0,0.0001478,2]
[382670511,1756703452471,-629.46,0.0001478,2]
[382670512,1756703452481,-151.0,0.00014781,2]
[382670513,1756703452491,-500.0,0.00014781,2]
[382670514,1756703452501,-153.09634225,0.00014781,2]
[382670515,1756703452511,-500.0,0.00014781,2]
[382670516,1756703452520,-480.0,0.00014782,2]
[382670517,1756703452530,-480.0,0.00014782,2]
[382670518,1756703452541,-1043.0,0.00014782,2]
[382670519,1756703452551,-570.88,0.00014782,2]
[382670520,1756703452562,-771.01,0.00014782,2]
[382670521,1756703452571,-827.81,0.00014782,2]
[382670522,1756703452581,-549.22,0.00014782,2]
[382670523,1756703452590,-480.0,0.00014782,2]
[382670524,1756703452600,-480.0,0.00014782,2]
[382670525,1756703452610,-480.0,0.00014782,2]
[382670526,1756703452619,-558.07,0.00014782,2]
[382670527,1756703452628,-480.0,0.00014782,2]
[382670528,1756703452637,-480.0,0.00014782,2]
[382670529,1756703452647,-480.0,0.00014782,2]
[382670530,1756703452656,-715.82,0.00014782,2]
[382670531,1756703452665,-673.93,0.00014782,2]
[382670532,1756703452676,-480.0,0.00014782,2]
[382670533,1756703452685,-480.0,0.00014782,2]
[382670534,1756703452695,-480.0,0.00014782,2]
[382670535,1756703452706,-480.0,0.00014782,2]
[382670536,1756703452716,-500.0,0.00014783,2]
[382670537,1756703452727,-252.84445179,0.00014783,2]
[382670538,1756703452737,-155.30172813,0.00014783,2]
[382670539,1756703452747,-500.0,0.00014783,2]
[382670540,1756703452757,-151.0,0.00014783,2]
[382670541,1756703452766,-155.8786339,0.00014783,2]
[382670542,1756703452776,-152.86646227,0.00014783,2]
[382670543,1756703452785,-499.69705936,0.00014783,2]
[382670544,1756703452794,-480.0,0.00014783,2]
[382670545,1756703452803,-687.66,0.00014783,2]
[382670546,1756703452812,-480.0,0.00014783,2]
[382670547,1756703452821,-480.0,0.00014783,2]
[382670548,1756703452830,-480.0,0.00014783,2]
[382670549,1756703452840,-480.0,0.00014783,2]
[382670550,1756703452849,-480.0,0.00014783,2]
[382670551,1756703452858,-480.0,0.00014783,2]
[382670552,1756703452867,-169.60671576,0.00014783,2]
[382670553,1756703452876,-480.0,0.00014783,2]
[382670554,1756703452885,-480.0,0.00014783,2]
[382670555,1756703452895,-480.0,0.00014783,2]
[382670556,1756703452905,-480.0,0.00014783,2]
[382670557,1756703452914,-480.0,0.00014783,2]
[382670558,1756703452923,-627.14,0.00014783,2]
[382670559,1756703452936,-480.0,0.00014783,2]
[382670560,1756703452946,-414.39887022,0.00014783,2]
[382670561,1756703452955,-480.0,0.00014783,2]
[382670562,1756703452965,-480.0,0.00014783,2]
[382670563,1756703452975,-480.0,0.00014783,2]
[382670564,1756703452984,-497.55,0.00014783,2]
[382670565,1756703452992,-480.0,0.00014783,2]
[382670566,1756703453001,-641.8,0.00014783,2]
[382670567,1756703453011,-523.19,0.00014783,2]
[382670568,1756703453021,-534.36,0.00014783,2]
[382670569,1756703453030,-480.0,0.00014783,2]
[382670570,1756703453039,-480.0,0.00014783,2]
[382670571,1756703453048,-871.68,0.00014783,2]
[382670572,1756703453057,-597.55,0.00014783,2]
[382670573,1756703453066,-666.04,0.00014783,2]
[382670574,1756703453076,-480.0,0.00014783,2]
[382670575,1756703453085,-365.76220789,0.00014783,2]
[382670576,1756703453095,-688.86,0.00014783,2]
[382670577,1756703453104,-851.96,0.00014783,2]
[382670578,1756703453113,-577.03,0.00014783,2]
[382670579,1756703453123,-480.0,0.00014783,2]
[382670580,1756703453132,-721.93,0.00014783,2]
[382670581,1756703453141,-480.0,0.00014783,2]
[382670582,1756703453150,-2822.86,0.00014783,2]
[382670583,1756703453160,-500.0,0.00014784,2]
[382670584,1756703453169,-298.48796541,0.00014785,2]
[382670585,1756703453178,-166.26133616,0.00014785,2]
[382670586,1756703453187,-151.0,0.00014785,2]
[382670587,1756703453196,-480.0,0.00014786,2]
[382670588,1756703453206,-480.0,0.00014786,2]
[382670589,1756703453217,-480.0,0.00014786,2]
[382670590,1756703453227,-452.64779545,0.00014786,2]
[382670591,1756703453237,-480.0,0.00014786,2]
[382670592,1756703453246,-698.76,0.00014786,2]
[382670593,1756703453255,-480.0,0.00014786,2]
[382670594,1756703453264,-480.0,0.00014786,2]
[382670595,1756703453274,-480.0,0.00014786,2]
[382670596,1756703453283,-692.24,0.00014786,2]
[382670597,1756703453292,-722.02,0.00014786,2]
[382670598,1756703453302,-480.0,0.00014786,2]
[382670599,1756703453311,-997.72,0.00014786,2]
[382670600,1756703453320,-480.0,0.00014786,2]
[382670601,1756703453329,-480.0,0.00014786,2]
[382670602,1756703453339,-480.0,0.00014786,2]
[382670603,1756703453348,-480.0,0.00014786,2]
[382670604,1756703453357,-480.0,0.00014786,2]
[382670605,1756703453367,-480.0,0.00014786,2]
[382670606,1756703453376,-480.0,0.00014786,2]
[382670607,1756703453385,-1039.33,0.00014786,2]
[382670608,1756703453395,-480.0,0.00014786,2]
[382670609,1756703453405,-213.58266414,0.00014786,2]
[382670610,1756703453415,-267.58415961,0.00014786,2]
[382670611,1756703453425,-480.0,0.00014786,2]
[382670612,1756703453434,-948.45,0.00014786,2]
[382670613,1756703453443,-480.0,0.00014786,2]
[382670614,1756703453452,-480.0,0.00014786,2]
[382670615,1756703453461,-480.0,0.00014786,2]
[382670616,1756703453471,-480.0,0.00014786,2]
[382670617,1756703453480,-647.12,0.00014786,2]
[382670618,1756703453489,-513.96,0.00014786,2]
[382670619,1756703453498,-454.68698746,0.00014786,2]
[382670620,1756703453508,-520.92,0.00014786,2]
[382670621,1756703453517,-480.0,0.00014786,2]
[382670622,1756703453527,-480.0,0.00014786,2]
[382670623,1756703453536,-480.0,0.00014786,2]
[382670624,1756703453545,-480.0,0.00014786,2]
[382670625,1756703453554,-480.0,0.00014786,2]
[382670626,1756703453563,-480.0,0.00014786,2]
[382670627,1756703453572,-485.81,0.00014786,2]
[382670628,1756703453581,-1008.77,0.00014786,2]
[382670629,1756703453590,-480.0,0.00014786,2]
[382670630,1756703453599,-594.59,0.00014786,2]
[382670631,1756703453608,-480.0,0.00014786,2]
[382670632,1756703453617,-480.0,0.00014786,2]
[382670633,1756703453627,-480.0,0.00014786,2]
[382670634,1756703453636,-480.0,0.00014786,2]
[382670635,1756703453646,-480.0,0.00014786,2]
[382670636,1756703453655,-484.6,0.00014786,2]
[382670637,1756703453665,-281.3085323,0.00014786,2]
[382670638,1756703453673,-899.7,0.00014786,2]
[382670639,1756703453683,-989.5,0.00014786,2]
[382670640,1756703453692,-299.371053,0.00014786,2]
[382670641,1756703453701,-972.19,0.00014786,2]
[382670642,1756703453710,-480.0,0.00014786,2]
[382670643,1756703453720,-590.68739444,0.00014786,2]
[382670644,1756703453729,-480.0,0.00014786,2]
[382670645,1756703453738,-480.0,0.00014786,2]
[382670646,1756703453747,-510.12,0.00014786,2]
[382670647,1756703453756,-480.0,0.00014786,2]
[382670648,1756703453765,-480.0,0.00014786,2]
[382670649,1756703453774,-480.0,0.00014786,2]
[382670650,1756703453784,-480.0,0.00014786,2]
[382670651,1756703453793,-480.0,0.00014786,2]
[382670652,1756703453802,-480.0,0.00014786,2]
[382670653,1756703453811,-480.0,0.00014786,2]
[382670654,1756703453821,-482.35,0.00014786,2]
[382670655,1756703453831,-480.0,0.00014786,2]
[382670656,1756703453840,-548.8,0.00014786,2]
[382670657,1756703453850,-480.0,0.00014786,2]
[382670658,1756703453859,-480.0,0.00014786,2]
[382670659,1756703453869,-480.0,0.00014786,2]
[382670660,1756703453879,-370.47807398,0.00014786,2]
[382670661,1756703453888,-605.97,0.00014786,2]
[382670662,1756703453898,-480.0,0.00014786,2]
[382670663,1756703453908,-480.0,0.00014786,2]
[382670664,1756703453918,-480.0,0.00014786,2]
[382670665,1756703453930,-480.0,0.00014786,2]
[382670666,1756703453942,-480.0,0.00014786,2]
[382670667,1756703453953,-190.75886297,0.00014786,2]
[382670668,1756703453963,-151.0,0.000148,2]
[382670669,1756703453972,-151.0,0.000148,2]
[382670670,1756703453982,-168.0,0.00014806,2]
[382670671,1756703453992,-1358.56347013,0.00014808,2]
[382670672,1756703454004,-5152.0,0.00014873,2]
[382670673,1756703454015,-5823.33784784,0.00014898,2]
[382670674,1756703454025,-151.0,0.000149,2]
[382670675,1756703454035,-151.0,0.000149,2]
[382670676,1756703454046,-151.0,0.000149,2]
[382670677,1756703454056,-163.29844306,0.000149,2]
[382670678,1756703454066,-163.29844306,0.000149,2]
[382670679,1756703454076,-1000.0,0.00014921,2]
[382670680,1756703454086,-1000.0,0.00014921,2]
[382670681,1756703454096,-1000.0,0.00014921,2]
[382670682,1756703454108,-1000.0,0.00014921,2]
[382670683,1756703454117,-404.0945111,0.00014921,2]
[382670684,1756703454128,-1000.0,0.00014921,2]
[382670685,1756703454140,-1000.0,0.00014921,2]
[382670686,1756703454151,-1000.0,0.00014921,2]
[382670687,1756703454162,-1000.0,0.00014921,2]
[382670688,1756703454172,-390.26996667,0.00014921,2]
[382670689,1756703454183,-1000.0,0.00014921,2]
[382670690,1756703454193,-1000.0,0.00014921,2]
[382670691,1756703454204,-1000.0,0.00014921,2]
[382670692,1756703454214,-1062.38897382,0.00014921,2]
[382670693,1756703454223,-1000.0,0.00014921,2]
[382670694,1756703454236,-501.55060446,0.00014921,2]
[382670695,1756703454247,-752.53007301,0.00014921,2]
[382670696,1756703454256,-1000.0,0.00014921,2]
[382670697,1756703454267,-1001.46562406,0.00014921,2]
[382670698,1756703454278,-1000.0,0.00014921,2]
[382670699,1756703454288,-1000.0,0.00014921,2]
[382670700,1756703454298,-1000.0,0.00014921,2]
[382670701,1756703454308,-1000.0,0.00014921,2]
[382670702,1756703454320,-525.08306546,0.00014921,2]
[382670703,1756703454330,-664.89562748,0.00014921,2]
[382670704,1756703454340,-753.8454926,0.00014921,2]
[382670705,1756703454350,-1001.36695083,0.00014921,2]
[382670706,1756703454360,-1000.0,0.00014921,2]
[382670707,1756703454370,-480.0,0.00014928,2]
[382670708,1756703454380,-480.0,0.00014928,2]
[382670709,1756703454390,-480.0,0.00014928,2]
[382670710,1756703454399,-594.71,0.00014928,2]
[382670711,1756703454410,-3547.71,0.00014928,2]
[382670712,1756703454419,-3780.08,0.00014928,2]
[382670713,1756703454429,-934.28,0.00014928,2]
[382670714,1756703454439,-480.0,0.00014928,2]
[382670715,1756703454448,-1042.47,0.00014928,2]
[382670716,1756703454458,-1121.95,0.00014928,2]
[382670717,1756703454468,-480.0,0.00014928,2]
[382670718,1756703454478,-1644.93,0.00014928,2]
[382670719,1756703454489,-480.0,0.0001493,2]
[382670720,1756703454499,-480.0,0.0001493,2]
[382670721,1756703454508,-480.0,0.0001493,2]
[382670722,1756703454518,-480.0,0.0001493,2]
[382670723,1756703454527,-480.0,0.0001493,2]
[382670724,1756703454537,-747.2,0.0001493,2]
[382670725,1756703454546,-480.0,0.0001493,2]
[382670726,1756703454555,-480.0,0.0001493,2]
[382670727,1756703454565,-630.41,0.0001493,2]
[382670728,1756703454575,-480.0,0.0001493,2]
[382670729,1756703454585,-968.44,0.0001493,2]
[382670730,1756703454595,-480.0,0.0001493,2]
[382670731,1756703454606,-480.0,0.0001493,2]
[382670732,1756703454615,-480.0,0.0001493,2]
[382670733,1756703454624,-480.0,0.0001493,2]
[382670734,1756703454634,-832.43,0.0001493,2]
[382670735,1756703454644,-946.87,0.0001493,2]
[382670736,1756703454653,-480.0,0.0001493,2]
[382670737,1756703454664,-912.79,0.0001493,2]
[382670738,1756703454674,-828.33,0.0001493,2]
[382670739,1756703454683,-480.0,0.0001493,2]
[382670740,1756703454695,-570.61466168,0.0001493,2]
[382670741,1756703454706,-480.0,0.0001493,2]
[382670742,1756703454717,-480.0,0.0001493,2]
[382670743,1756703454727,-480.0,0.0001493,2]
[382670744,1756703454736,-480.0,0.0001493,2]
[382670745,1756703454746,-800.8,0.0001493,2]
[382670746,1756703454756,-811.61,0.0001493,2]
[382670747,1756703454766,-665.84,0.0001493,2]
[382670748,1756703454776,-840.08,0.0001493,2]
[382670749,1756703454787,-480.0,0.0001493,2]
[382670750,1756703454797,-480.0,0.0001493,2]
[382670751,1756703454807,-961.35,0.0001493,2]
[382670752,1756703454816,-775.25,0.0001493,2]
[382670753,1756703454826,-1025.18,0.0001493,2]
[382670754,1756703454835,-480.0,0.0001493,2]
[382670755,1756703454846,-480.0,0.0001493,2]
[382670756,1756703454856,-816.73,0.0001493,2]
[382670757,1756703454866,-480.0,0.0001493,2]
[382670758,1756703454875,-480.0,0.0001493,2]
[382670759,1756703454886,-492.23,0.0001493,2]
[382670760,1756703454895,-12.5651691,0.0001493,2]
[382670761,1756703455734,-480.0,0.00014238,2]
[382670762,1756703455774,-39.48394604,0.00014238,2]
[382670763,1756703455956,-0.04152389,0.00014238,2]
[382670764,1756703456285,-174.38156707,0.00014238,2]
[382670765,1756703456308,-117.6494497,0.00014238,2]
[382670766,1756703457198,-575.05,0.00014232,2]
[382670767,1756703457207,-480.0,0.00014235,2]
[382670768,1756703457217,-60.66421841,0.00014235,2]
[382670769,1756703457303,-556.68578159,0.00014235,2]
[382670770,1756703457334,-362.3505503,0.00014238,2]
[382670771,1756703457445,575.05,0.0001409,2]
[382670772,1756703457486,480.0,0.00014238,2]
[382670773,1756703457558,480.0,0.00014234,2]
[382670774,1756703457743,480.0,0.00014238,2]
[382670775,1756703457792,480.0,0.00014232,2]
[382670776,1756703457909,487.7,0.00014234,2]
[382670777,1756703458117,480.0,0.00014238,2]
[382670778,1756703458240,480.0,0.00014232,2]
[382670779,1756703458362,480.0,0.00014234,2]
[382670780,1756703458396,480.0,0.00014235,2]
[382670781,1756703458508,480.0,0.00014238,2]
[382670782,1756703473354,181.14,0.00012329,2]
[382670784,1756703486729,1051.427309,0.00013699,2]
[382670786,1756703524875,366.63,0.00012329,2]
[382670787,1756703671590,480.0,0.00013949,2]